[Event "*** Titled Tuesday 3|2 Blitz"]
[Site "Chess.com"]
[Date "2016.09.06"]
[Round "4"]
[White "Haykos"]
[Black "jb2mix"]
[Result "1-0"]
[WhiteElo "2245"]
[BlackElo "2407"]
[TimeControl "180+2"]
[EndTime "11:54:15 PDT"]
[Termination "Haykos won by resignation"]

1. e4 {[%clk 0:02:55.9]} 1... c6 {[%clk 0:03:00.1]} 2. d4 {[%clk 0:02:55.2]}
2... d5 {[%clk 0:03:01]} 3. f3 {[%clk 0:02:51.4]} 3... e6 {[%clk 0:03:00.2]} 4.
Be3 {[%clk 0:02:49.5]} 4... dxe4 {[%clk 0:02:57.3]} 5. Nd2 {[%clk 0:02:48.6]}
5... exf3 {[%clk 0:02:42.1]} 6. Ngxf3 {[%clk 0:02:50.5]} 6... Nd7 {[%clk
0:02:32.3]} 7. Nc4 {[%clk 0:02:46.1]} 7... Ngf6 {[%clk 0:02:24.9]} 8. Qd2 {[%clk
0:02:43.6]} 8... b5 {[%clk 0:01:48.8]} 9. Nce5 {[%clk 0:02:34.7]} 9... Nxe5
{[%clk 0:01:49.7]} 10. Nxe5 {[%clk 0:02:36.6]} 10... Bb7 {[%clk 0:01:47.8]} 11.
Be2 {[%clk 0:02:29.4]} 11... Nd7 {[%clk 0:01:45.1]} 12. Nd3 {[%clk 0:02:09.5]}
12... Bd6 {[%clk 0:01:36.8]} 13. O-O {[%clk 0:02:01.4]} 13... Qc7 {[%clk
0:01:36]} 14. h3 {[%clk 0:02:00.8]} 14... O-O {[%clk 0:01:34.1]} 15. b4 {[%clk
0:01:47.7]} 15... a5 {[%clk 0:01:29.9]} 16. a3 {[%clk 0:01:48.5]} 16... e5
{[%clk 0:01:16.9]} 17. c3 {[%clk 0:01:25.4]} 17... axb4 {[%clk 0:01:14.7]} 18.
axb4 {[%clk 0:01:25.3]} 18... exd4 {[%clk 0:00:58.2]} 19. Bxd4 {[%clk
0:01:19.5]} 19... c5 {[%clk 0:00:41.6]} 20. bxc5 {[%clk 0:01:19.4]} 20... Nxc5
{[%clk 0:00:42.1]} 21. Nxc5 {[%clk 0:01:15.4]} 21... Bxc5 {[%clk 0:00:42.8]} 22.
Bxb5 {[%clk 0:01:12.7]} 22... Rad8 {[%clk 0:00:37]} 23. Rad1 {[%clk 0:01:11]}
23... Ba8 {[%clk 0:00:25.5]} 24. Qf2 {[%clk 0:00:52.6]} 24... Bxd4 {[%clk
0:00:19.9]} 25. cxd4 {[%clk 0:00:51.2]} 25... Rd6 {[%clk 0:00:20.4]} 26. Rfe1
{[%clk 0:00:41.6]} 26... Rg6 {[%clk 0:00:16.9]} 27. Bf1 {[%clk 0:00:34.8]} 27...
Bd5 {[%clk 0:00:18.1]} 28. Re5 {[%clk 0:00:34.8]} 28... Qd7 {[%clk 0:00:19.1]}
29. Rde1 {[%clk 0:00:35]} 29... Ba8 {[%clk 0:00:17.7]} 30. Kh2 {[%clk
0:00:28.1]} 30... h6 {[%clk 0:00:18.7]} 31. Qf4 {[%clk 0:00:27.6]} 31... Qd6
{[%clk 0:00:18.9]} 32. Rf5 {[%clk 0:00:27.2]} 32... Qd7 {[%clk 0:00:14.7]} 33.
Re3 {[%clk 0:00:22.8]} 33... Rd8 {[%clk 0:00:14.8]} 34. Rg3 {[%clk 0:00:22.1]}
34... Rxg3 {[%clk 0:00:15.2]} 35. Kxg3 {[%clk 0:00:24]} 35... Qxd4 {[%clk
0:00:13.7]} 36. Rxf7 {[%clk 0:00:25.1]} 36... Qxf4+ {[%clk 0:00:03.3]} 37. Rxf4
{[%clk 0:00:27]} 37... Rd2 {[%clk 0:00:03.4]} 38. Ra4 {[%clk 0:00:20.5]} 38...
Bd5 {[%clk 0:00:04.8]} 39. Ra5 {[%clk 0:00:20.3]} 39... Kh7 {[%clk 0:00:05.5]}
40. Ra3 {[%clk 0:00:19.9]} 40... h5 {[%clk 0:00:06.3]} 41. Re3 {[%clk
0:00:20.6]} 41... Kh6 {[%clk 0:00:05.9]} 42. Re5 {[%clk 0:00:20.7]} 42... g5
{[%clk 0:00:05.2]} 43. h4 {[%clk 0:00:20.3]} 43... gxh4+ {[%clk 0:00:05]} 44.
Kh2 {[%clk 0:00:20.5]} 44... Rd4 {[%clk 0:00:06.3]} 45. Be2 {[%clk 0:00:21.1]}
45... Kg6 {[%clk 0:00:06.7]} 46. Rxh5 {[%clk 0:00:21.4]} 46... Rd2 {[%clk
0:00:07.9]} 47. Bg4 {[%clk 0:00:20.8]} 47... Rxg2+ {[%clk 0:00:08.5]} 48. Kh3
{[%clk 0:00:21.6]} 48... Rd2 {[%clk 0:00:08]} 49. Re5 {[%clk 0:00:20.7]} 49...
Bf7 {[%clk 0:00:05.8]} 50. Kxh4 {[%clk 0:00:19.6]} 50... Rd4 {[%clk 0:00:06.9]}
51. Rg5+ {[%clk 0:00:19.5]} 51... Kf6 {[%clk 0:00:07.9]} 52. Rf5+ {[%clk
0:00:20.9]} 52... Ke7 {[%clk 0:00:09.6]} 53. Re5+ {[%clk 0:00:21.8]} 53... Kd6
{[%clk 0:00:10.9]} 54. Rg5 {[%clk 0:00:20.5]} 54... Ke7 {[%clk 0:00:11.9]} 55.
Kg3 {[%clk 0:00:21.1]} 55... Rd3+ {[%clk 0:00:12.2]} 56. Kf4 {[%clk 0:00:21.8]}
56... Rd4+ {[%clk 0:00:13.7]} 57. Ke3 {[%clk 0:00:22.6]} 57... Rb4 {[%clk
0:00:14.2]} 58. Bf3 {[%clk 0:00:23.8]} 58... Kf6 {[%clk 0:00:15]} 59. Rc5 {[%clk
0:00:24.6]} 59... Rb3+ {[%clk 0:00:15.6]} 60. Kf4 {[%clk 0:00:25.6]} 60... Ra3
{[%clk 0:00:16.9]} 61. Be4 {[%clk 0:00:26.7]} 61... Be6 {[%clk 0:00:17.9]} 62.
Rb5 {[%clk 0:00:27.1]} 62... Ra4 {[%clk 0:00:18.8]} 63. Rb6 {[%clk 0:00:28.2]}
63... Ke7 {[%clk 0:00:19]} 64. Ke5 {[%clk 0:00:29.2]} 64... Ra5+ {[%clk
0:00:19.4]} 65. Kf4 {[%clk 0:00:30.5]} 65... Ra4 {[%clk 0:00:20.7]} 66. Rb7+
{[%clk 0:00:31.9]} 66... Kf6 {[%clk 0:00:21.5]} 67. Rb6 {[%clk 0:00:33.8]} 67...
Ke7 {[%clk 0:00:22.3]} 68. Ke3 {[%clk 0:00:33.8]} 68... Kf6 {[%clk 0:00:22.1]}
69. Bd5 {[%clk 0:00:33.8]} 69... Ra3+ {[%clk 0:00:19.1]} 70. Kd2 {[%clk
0:00:33.6]} 70... Ke5 {[%clk 0:00:17.4]} 71. Bxe6 {[%clk 0:00:34.5]} 71... Kd4
{[%clk 0:00:18.8]} 72. Bb3 {[%clk 0:00:34.7]} 72... Kc5 {[%clk 0:00:19.5]} 73.
Rb8 {[%clk 0:00:35.6]} 73... Kd4 {[%clk 0:00:20.9]} 74. Rb4+ {[%clk 0:00:35.4]}
74... Kc5 {[%clk 0:00:21.7]} 75. Kc3 {[%clk 0:00:36.6]} 75... Ra1 {[%clk
0:00:22.1]} 76. Rc4+ {[%clk 0:00:38.5]} 76... Kb5 {[%clk 0:00:23]} 77. Rh4
{[%clk 0:00:38.8]} 77... Rc1+ {[%clk 0:00:23.3]} 78. Bc2 {[%clk 0:00:40.3]}
78... Rg1 {[%clk 0:00:24.7]} 79. Rh5+ {[%clk 0:00:41.6]} 79... Kc6 {[%clk
0:00:25.6]} 80. Kd4 {[%clk 0:00:43.1]} 80... Kb6 {[%clk 0:00:22.7]} 81. Be4
{[%clk 0:00:39.5]} 81... Rc1 {[%clk 0:00:21.4]} 82. Rh6+ {[%clk 0:00:39.8]}
82... Kb5 {[%clk 0:00:22.3]} 83. Bd3+ {[%clk 0:00:38.5]} 83... Kb4 {[%clk
0:00:21.2]} 84. Rb6+ {[%clk 0:00:39.3]} 84... Ka5 {[%clk 0:00:21.9]} 85. Rb5+
{[%clk 0:00:40.4]} 85... Ka4 {[%clk 0:00:22.3]} 86. Bc4 {[%clk 0:00:38.7]} 86...
Rh1 {[%clk 0:00:18.5]} 87. Rb8 {[%clk 0:00:38.1]} 87... Rh6 {[%clk 0:00:14.1]}
88. Kc3 {[%clk 0:00:34.6]} 88... Rh3+ {[%clk 0:00:09.8]} 89. Bd3 {[%clk
0:00:35.4]} 89... Rh6 {[%clk 0:00:07.3]} 90. Ra8+ {[%clk 0:00:34.7]} 1-0

[Event "*** Titled Tuesday 3|2 Blitz"]
[Site "Chess.com"]
[Date "2016.09.06"]
[Round "5"]
[White "Journey_to_GrandMaster_YT"]
[Black "ftorodent"]
[Result "0-1"]
[WhiteElo "2351"]
[BlackElo "2483"]
[TimeControl "180+2"]
[EndTime "11:58:20 PDT"]
[Termination "ftorodent won by resignation"]

1. d4 {[%clk 0:03:02]} 1... d5 {[%clk 0:03:00]} 2. Nf3 {[%clk 0:03:02.9]} 2...
Bf5 {[%clk 0:02:58.5]} 3. c4 {[%clk 0:03:03.7]} 3... e6 {[%clk 0:02:59.7]} 4.
Nc3 {[%clk 0:03:04.2]} 4... Nf6 {[%clk 0:03:00.2]} 5. Qb3 {[%clk 0:03:04.1]}
5... Nc6 {[%clk 0:03:01.3]} 6. Nh4 {[%clk 0:02:49.7]} 6... Nxd4 {[%clk
0:02:55.9]} 7. Qa4+ {[%clk 0:02:47.1]} 7... Qd7 {[%clk 0:02:51.2]} 8. Qxd7+
{[%clk 0:02:30.2]} 8... Kxd7 {[%clk 0:02:51.2]} 9. Kd1 {[%clk 0:02:28.5]} 9...
Bc2+ {[%clk 0:02:40.1]} 10. Kd2 {[%clk 0:02:28.4]} 10... Ne4+ {[%clk 0:02:38.5]}
11. Nxe4 {[%clk 0:02:27.7]} 11... dxe4 {[%clk 0:02:27.1]} 12. Kc3 {[%clk
0:02:16.6]} 12... Be7 {[%clk 0:01:54.5]} 13. e3 {[%clk 0:02:14.2]} 13... Bxh4
{[%clk 0:01:53.1]} 14. exd4 {[%clk 0:02:14.7]} 14... Ba4 {[%clk 0:01:52.5]} 15.
g3 {[%clk 0:02:09.4]} 15... Bf6 {[%clk 0:01:52.8]} 16. Be3 {[%clk 0:02:07.7]}
16... c5 {[%clk 0:01:50.4]} 17. b3 {[%clk 0:02:06.8]} 17... Bc6 {[%clk
0:01:51.5]} 18. Rd1 {[%clk 0:02:07.9]} 18... Ke7 {[%clk 0:01:50.9]} 19. Kc2
{[%clk 0:02:08.3]} 19... cxd4 {[%clk 0:01:49.6]} 20. Bxd4 {[%clk 0:02:09]} 20...
Bxd4 {[%clk 0:01:50.1]} 21. Rxd4 {[%clk 0:02:10]} 21... e3 {[%clk 0:01:51.8]}
22. Rg1 {[%clk 0:02:11.1]} 22... exf2 {[%clk 0:01:52.9]} 0-1

[Event "*** Titled Tuesday 3|2 Blitz"]
[Site "Chess.com"]
[Date "2016.09.06"]
[Round "5"]
[White "Kawhi_Leonard2"]
[Black "Jahonas"]
[Result "1-0"]
[WhiteElo "2016"]
[BlackElo "2180"]
[TimeControl "180+2"]
[EndTime "11:58:24 PDT"]
[Termination "Kawhi_Leonard2 won by resignation"]

1. e4 {[%clk 0:03:01.9]} 1... e5 {[%clk 0:02:28.3]} 2. Nf3 {[%clk 0:02:59.9]}
2... Nc6 {[%clk 0:02:27.9]} 3. Bb5 {[%clk 0:02:59.9]} 3... Nge7 {[%clk
0:02:21.2]} 4. c3 {[%clk 0:02:57.6]} 4... g6 {[%clk 0:02:19.4]} 5. d4 {[%clk
0:02:56.8]} 5... exd4 {[%clk 0:02:20.6]} 6. cxd4 {[%clk 0:02:56.9]} 6... d5
{[%clk 0:02:21.8]} 7. exd5 {[%clk 0:02:57.4]} 7... Nxd5 {[%clk 0:02:22.6]} 8.
Nc3 {[%clk 0:02:58.3]} 8... Be6 {[%clk 0:02:21.6]} 9. Ne5 {[%clk 0:02:41.9]}
9... Qd6 {[%clk 0:02:14.8]} 10. O-O {[%clk 0:02:35.9]} 10... Bg7 {[%clk
0:02:02.2]} 11. Ne4 {[%clk 0:02:30.8]} 11... Qd8 {[%clk 0:01:46.1]} 12. Nxc6
{[%clk 0:02:27.5]} 12... bxc6 {[%clk 0:01:45.5]} 13. Bxc6+ {[%clk 0:02:28.2]}
13... Kf8 {[%clk 0:01:45.4]} 14. Bxa8 {[%clk 0:02:27.2]} 14... Qxa8 {[%clk
0:01:45.9]} 15. Nc5 {[%clk 0:02:27.3]} 15... Qc6 {[%clk 0:01:45]} 16. Re1 {[%clk
0:02:22.1]} 16... h5 {[%clk 0:01:44.2]} 17. Nxe6+ {[%clk 0:02:14.4]} 17... fxe6
{[%clk 0:01:44.8]} 18. Bg5 {[%clk 0:02:09.1]} 18... Kf7 {[%clk 0:01:38.7]} 19.
Qf3+ {[%clk 0:02:07.4]} 1-0

[Event "*** Titled Tuesday 3|2 Blitz"]
[Site "Chess.com"]
[Date "2016.09.06"]
[Round "5"]
[White "Krutoy123"]
[Black "Misha_Bilous"]
[Result "1-0"]
[WhiteElo "2418"]
[BlackElo "2359"]
[TimeControl "180+2"]
[EndTime "12:00:23 PDT"]
[Termination "Krutoy123 won by resignation"]

1. e4 {[%clk 0:02:43.5]} 1... c5 {[%clk 0:02:59.4]} 2. Nf3 {[%clk 0:02:44]} 2...
Nc6 {[%clk 0:03:00.7]} 3. Bb5 {[%clk 0:02:44.4]} 3... Nf6 {[%clk 0:03:00.1]} 4.
Nc3 {[%clk 0:02:42.9]} 4... Qc7 {[%clk 0:02:52.7]} 5. O-O {[%clk 0:02:40.5]}
5... Nd4 {[%clk 0:02:42]} 6. Re1 {[%clk 0:02:34.8]} 6... a6 {[%clk 0:02:34.9]}
7. Bf1 {[%clk 0:02:34.3]} 7... d6 {[%clk 0:02:18]} 8. Nxd4 {[%clk 0:02:26.6]}
8... cxd4 {[%clk 0:02:18.6]} 9. Ne2 {[%clk 0:02:28.5]} 9... Nxe4 {[%clk
0:02:06.5]} 10. Nxd4 {[%clk 0:02:26.2]} 10... Nf6 {[%clk 0:02:04.5]} 11. Qf3
{[%clk 0:02:18.9]} 11... g6 {[%clk 0:01:43.9]} 12. Qxf6 {[%clk 0:02:16.2]} 12...
Rg8 {[%clk 0:01:35.4]} 13. Qf3 {[%clk 0:02:15.2]} 13... Bg7 {[%clk 0:01:34.4]}
14. c3 {[%clk 0:02:15.6]} 14... e5 {[%clk 0:01:35.1]} 15. Nc2 {[%clk 0:02:13.7]}
15... Bd7 {[%clk 0:01:32.9]} 16. d4 {[%clk 0:02:14.1]} 16... O-O-O {[%clk
0:01:28.6]} 17. Nb4 {[%clk 0:02:08.3]} 17... Be6 {[%clk 0:01:08.7]} 18. Nd5
{[%clk 0:02:06.8]} 18... Bxd5 {[%clk 0:01:08.1]} 19. Qxd5 {[%clk 0:02:08.7]}
19... f5 {[%clk 0:01:08]} 20. g3 {[%clk 0:01:53.7]} 20... h5 {[%clk 0:00:50.9]}
21. Bg5 {[%clk 0:01:52.1]} 21... Rde8 {[%clk 0:00:50.1]} 22. Bg2 {[%clk
0:01:52.3]} 22... e4 {[%clk 0:00:46]} 23. f3 {[%clk 0:01:50.5]} 23... h4 {[%clk
0:00:41.8]} 24. fxe4 {[%clk 0:01:48.1]} 24... hxg3 {[%clk 0:00:39.3]} 25. hxg3
{[%clk 0:01:50]} 25... fxe4 {[%clk 0:00:36.3]} 26. Rxe4 {[%clk 0:01:50.4]} 26...
Rxe4 {[%clk 0:00:32.3]} 27. Qxg8+ {[%clk 0:01:50.5]} 1-0

[Event "*** Titled Tuesday 3|2 Blitz"]
[Site "Chess.com"]
[Date "2016.09.06"]
[Round "5"]
[White "LuckyTiger"]
[Black "severomorskij"]
[Result "0-1"]
[WhiteElo "2546"]
[BlackElo "2613"]
[TimeControl "180+2"]
[EndTime "12:00:34 PDT"]
[Termination "severomorskij won by resignation"]

1. e4 {[%clk 0:03:01.9]} 1... c5 {[%clk 0:02:59.9]} 2. c3 {[%clk 0:03:03.5]}
2... d5 {[%clk 0:02:56.5]} 3. exd5 {[%clk 0:03:05]} 3... Qxd5 {[%clk 0:02:57.6]}
4. d4 {[%clk 0:03:06.6]} 4... Nf6 {[%clk 0:02:56.8]} 5. Nf3 {[%clk 0:03:08.1]}
5... Bf5 {[%clk 0:02:57.3]} 6. Be3 {[%clk 0:03:06.5]} 6... Nc6 {[%clk
0:02:49.6]} 7. Nbd2 {[%clk 0:03:07.2]} 7... cxd4 {[%clk 0:02:49.2]} 8. Bc4
{[%clk 0:03:08.6]} 8... dxe3 {[%clk 0:02:47.7]} 9. Bxd5 {[%clk 0:03:09.7]} 9...
exd2+ {[%clk 0:02:45.1]} 10. Qxd2 {[%clk 0:03:11.6]} 10... O-O-O {[%clk
0:02:44.6]} 11. O-O {[%clk 0:03:03.8]} 11... Rxd5 {[%clk 0:02:42.1]} 12. Qf4
{[%clk 0:02:54.3]} 12... e6 {[%clk 0:02:42.4]} 13. Rad1 {[%clk 0:02:49.9]} 13...
Bd6 {[%clk 0:02:40.5]} 14. Qa4 {[%clk 0:02:50.1]} 14... Ra5 {[%clk 0:02:20.9]}
15. Qc4 {[%clk 0:02:43.9]} 15... Rc5 {[%clk 0:02:08.4]} 16. Qa4 {[%clk
0:02:39.6]} 16... Rd8 {[%clk 0:02:07.3]} 17. b4 {[%clk 0:02:25.2]} 17... Rxc3
{[%clk 0:02:05.9]} 18. b5 {[%clk 0:02:25.3]} 18... Bc2 {[%clk 0:01:53.9]} 19.
Qh4 {[%clk 0:02:06.7]} 19... Bxd1 {[%clk 0:01:45.2]} 20. Rxd1 {[%clk 0:02:05.6]}
20... Bc5 {[%clk 0:01:31.7]} 21. Rxd8+ {[%clk 0:01:44.9]} 21... Nxd8 {[%clk
0:01:31.8]} 22. h3 {[%clk 0:01:29.4]} 22... Rc2 {[%clk 0:01:09.1]} 23. Qg5
{[%clk 0:01:30.2]} 23... Bxf2+ {[%clk 0:01:05.6]} 24. Kh1 {[%clk 0:01:11.9]}
24... Ne4 {[%clk 0:01:05.2]} 25. Qe5 {[%clk 0:01:03.4]} 25... Rc1+ {[%clk
0:01:01.6]} 26. Kh2 {[%clk 0:01:03.3]} 26... Bg3+ {[%clk 0:01:02.3]} 0-1

[Event "*** Titled Tuesday 3|2 Blitz"]
[Site "Chess.com"]
[Date "2016.09.06"]
[Round "5"]
[White "hypert"]
[Black "Gabrielian_Artur"]
[Result "0-1"]
[WhiteElo "2341"]
[BlackElo "2509"]
[TimeControl "180+2"]
[EndTime "12:00:51 PDT"]
[Termination "Gabrielian_Artur won by resignation"]

1. d4 {[%clk 0:03:01.9]} 1... Nf6 {[%clk 0:03:00.1]} 2. g3 {[%clk 0:03:02]} 2...
g6 {[%clk 0:03:00.7]} 3. Bg2 {[%clk 0:03:03]} 3... d5 {[%clk 0:03:00]} 4. Nd2
{[%clk 0:03:02.3]} 4... Bg7 {[%clk 0:03:01]} 5. Ngf3 {[%clk 0:03:03.7]} 5... O-O
{[%clk 0:03:01.9]} 6. O-O {[%clk 0:03:05.2]} 6... c6 {[%clk 0:03:03.1]} 7. b3
{[%clk 0:03:06.4]} 7... a5 {[%clk 0:03:03.8]} 8. Bb2 {[%clk 0:03:07.8]} 8... a4
{[%clk 0:03:04.9]} 9. Re1 {[%clk 0:03:06.2]} 9... Bf5 {[%clk 0:03:04.7]} 10. Nh4
{[%clk 0:03:05.4]} 10... Be4 {[%clk 0:03:02.7]} 11. Nxe4 {[%clk 0:03:02.9]}
11... dxe4 {[%clk 0:03:03.7]} 12. Bf1 {[%clk 0:02:58.3]} 12... a3 {[%clk
0:02:58.2]} 13. Bc1 {[%clk 0:02:57.9]} 13... c5 {[%clk 0:02:58.2]} 14. e3 {[%clk
0:02:55.5]} 14... cxd4 {[%clk 0:02:59]} 15. exd4 {[%clk 0:02:55.6]} 15... Nc6
{[%clk 0:02:59.7]} 16. c3 {[%clk 0:02:34.1]} 16... e5 {[%clk 0:03:00.8]} 17.
dxe5 {[%clk 0:02:30.7]} 17... Nxe5 {[%clk 0:03:00.7]} 18. Be3 {[%clk 0:02:17.2]}
18... Nd5 {[%clk 0:02:49.9]} 19. Bd4 {[%clk 0:02:06.1]} 19... f5 {[%clk
0:02:48.7]} 20. Bxe5 {[%clk 0:01:46.3]} 20... Bxe5 {[%clk 0:02:48.9]} 21. Bc4
{[%clk 0:01:47.2]} 21... Bxc3 {[%clk 0:02:33.7]} 22. Qxd5+ {[%clk 0:01:45.2]}
22... Qxd5 {[%clk 0:02:34.1]} 23. Bxd5+ {[%clk 0:01:46]} 23... Kg7 {[%clk
0:02:35.7]} 24. Bxb7 {[%clk 0:01:45]} 24... Rab8 {[%clk 0:02:30]} 25. Bd5 {[%clk
0:01:45.5]} 25... Rfd8 {[%clk 0:02:30.5]} 26. Bc4 {[%clk 0:01:46.5]} 26... Bxe1
{[%clk 0:02:29.2]} 27. Rxe1 {[%clk 0:01:46.5]} 27... Rd2 {[%clk 0:02:30.8]} 28.
Ra1 {[%clk 0:01:31]} 28... Rbd8 {[%clk 0:02:31.7]} 29. Kf1 {[%clk 0:01:15.6]}
29... Rb2 {[%clk 0:02:26.8]} 30. Ng2 {[%clk 0:00:38.1]} 30... Rdd2 {[%clk
0:02:24.4]} 31. Nf4 {[%clk 0:00:38.6]} 31... Rxf2+ {[%clk 0:02:25.4]} 32. Kg1
{[%clk 0:00:39.4]} 32... Rxa2 {[%clk 0:02:24.2]} 33. Rxa2 {[%clk 0:00:35.5]}
33... Rxa2 {[%clk 0:02:24.1]} 34. Ne6+ {[%clk 0:00:19.8]} 34... Kf6 {[%clk
0:02:24.7]} 35. Nd4 {[%clk 0:00:19.4]} 35... Rb2 {[%clk 0:02:25]} 0-1

[Event "*** Titled Tuesday 3|2 Blitz"]
[Site "Chess.com"]
[Date "2016.09.06"]
[Round "5"]
[White "Ksenia_Legenko"]
[Black "goingin33"]
[Result "0-1"]
[WhiteElo "2009"]
[BlackElo "2143"]
[TimeControl "180+2"]
[EndTime "12:00:59 PDT"]
[Termination "goingin33 won by checkmate"]

1. d4 {[%clk 0:03:01.9]} 1... Nf6 {[%clk 0:02:57.2]} 2. c4 {[%clk 0:03:02.1]}
2... g6 {[%clk 0:02:58.3]} 3. Nc3 {[%clk 0:03:02.6]} 3... d5 {[%clk 0:02:59.4]}
4. Qa4+ {[%clk 0:03:03]} 4... Bd7 {[%clk 0:02:56.3]} 5. Qb3 {[%clk 0:03:03.8]}
5... dxc4 {[%clk 0:02:57.5]} 6. Qxc4 {[%clk 0:03:04.7]} 6... Bg7 {[%clk
0:02:58.3]} 7. Bf4 {[%clk 0:03:05.1]} 7... Bc6 {[%clk 0:02:55.6]} 8. Rd1 {[%clk
0:02:58.2]} 8... Nd5 {[%clk 0:02:47.2]} 9. Be5 {[%clk 0:02:56]} 9... Nxc3 {[%clk
0:02:34.3]} 10. Qxc3 {[%clk 0:02:40.3]} 10... f6 {[%clk 0:02:22.9]} 11. Bg3
{[%clk 0:02:33.2]} 11... O-O {[%clk 0:02:13.9]} 12. d5 {[%clk 0:02:29]} 12...
Bb5 {[%clk 0:02:09]} 13. Qxc7 {[%clk 0:02:21.9]} 13... Qxc7 {[%clk 0:02:09.1]}
14. Bxc7 {[%clk 0:02:22.6]} 14... Na6 {[%clk 0:02:09.9]} 15. Bg3 {[%clk
0:02:16.7]} 15... f5 {[%clk 0:02:04.4]} 16. b3 {[%clk 0:02:14.5]} 16... Bc3+
{[%clk 0:02:03.1]} 17. Rd2 {[%clk 0:02:13]} 17... Rfd8 {[%clk 0:01:53.6]} 18. d6
{[%clk 0:02:06]} 18... e5 {[%clk 0:01:49.2]} 19. Nf3 {[%clk 0:01:50]} 19...
Bxd2+ {[%clk 0:01:48.2]} 20. Nxd2 {[%clk 0:01:49.1]} 20... f4 {[%clk 0:01:48.3]}
21. Bh4 {[%clk 0:01:48.1]} 21... Rxd6 {[%clk 0:01:49.5]} 22. e3 {[%clk
0:01:47.5]} 22... Bxf1 {[%clk 0:01:45.8]} 23. Rxf1 {[%clk 0:01:47]} 23... Rc8
{[%clk 0:01:43.9]} 24. Nc4 {[%clk 0:01:45.2]} 24... Re6 {[%clk 0:01:39.5]} 25.
Ke2 {[%clk 0:01:42.3]} 25... b5 {[%clk 0:01:39.6]} 26. Nd2 {[%clk 0:01:40.8]}
26... h6 {[%clk 0:01:37.3]} 27. f3 {[%clk 0:01:37]} 27... Rc2 {[%clk 0:01:35.4]}
28. Rd1 {[%clk 0:01:32.8]} 28... Rxa2 {[%clk 0:01:30.1]} 29. exf4 {[%clk
0:01:07.6]} 29... exf4+ {[%clk 0:01:28.9]} 30. Kf1 {[%clk 0:01:09.2]} 30... Nc5
{[%clk 0:01:26.3]} 31. Bf2 {[%clk 0:01:06.6]} 31... Nd3 {[%clk 0:01:22.4]} 32.
Bd4 {[%clk 0:01:02.6]} 32... Rxd2 {[%clk 0:01:21.1]} 33. Rxd2 {[%clk 0:00:53.2]}
33... Re1# {[%clk 0:01:20.8]} 0-1

[Event "*** Titled Tuesday 3|2 Blitz"]
[Site "Chess.com"]
[Date "2016.09.06"]
[Round "5"]
[White "Haridaskesavan"]
[Black "Quiet_Desperation"]
[Result "1-0"]
[WhiteElo "2206"]
[BlackElo "2225"]
[TimeControl "180+2"]
[EndTime "12:01:00 PDT"]
[Termination "Haridaskesavan won by resignation"]

1. e4 {[%clk 0:03:02]} 1... Nf6 {[%clk 0:03:00.9]} 2. e5 {[%clk 0:03:02.2]} 2...
Nd5 {[%clk 0:03:02.4]} 3. Nc3 {[%clk 0:03:03.4]} 3... Nxc3 {[%clk 0:03:02.9]} 4.
dxc3 {[%clk 0:03:04.6]} 4... d6 {[%clk 0:03:04.5]} 5. exd6 {[%clk 0:03:05.9]}
5... cxd6 {[%clk 0:03:05.6]} 6. Be3 {[%clk 0:03:06.5]} 6... Nc6 {[%clk
0:03:07.2]} 7. Qd2 {[%clk 0:03:07.5]} 7... Be6 {[%clk 0:03:04.6]} 8. Nf3 {[%clk
0:02:59.4]} 8... a6 {[%clk 0:03:04.2]} 9. Nd4 {[%clk 0:03:00.1]} 9... Nxd4
{[%clk 0:03:05.1]} 10. cxd4 {[%clk 0:03:00.4]} 10... Rc8 {[%clk 0:03:02]} 11.
Bd3 {[%clk 0:03:00.8]} 11... Qd7 {[%clk 0:03:01.7]} 12. O-O {[%clk 0:03:00.8]}
12... g6 {[%clk 0:03:02.2]} 13. b3 {[%clk 0:02:59.3]} 13... Bg7 {[%clk
0:03:03.5]} 14. c4 {[%clk 0:02:59.8]} 14... O-O {[%clk 0:03:03.4]} 15. Rad1
{[%clk 0:03:00.1]} 15... Bg4 {[%clk 0:03:03.3]} 16. f3 {[%clk 0:03:00.4]} 16...
Bf5 {[%clk 0:03:04.7]} 17. Rfe1 {[%clk 0:02:57.1]} 17... Bxd3 {[%clk 0:03:05.9]}
18. Qxd3 {[%clk 0:02:57.9]} 18... b5 {[%clk 0:03:07.7]} 19. d5 {[%clk
0:02:53.1]} 19... bxc4 {[%clk 0:03:07.5]} 20. bxc4 {[%clk 0:02:53.9]} 20... Qa4
{[%clk 0:03:08.8]} 21. Rc1 {[%clk 0:02:46]} 21... Qxa2 {[%clk 0:03:07.1]} 22.
Bd4 {[%clk 0:02:46.4]} 22... Bh6 {[%clk 0:02:55.2]} 23. Rc2 {[%clk 0:02:43.7]}
23... Qa5 {[%clk 0:02:52.9]} 24. Rxe7 {[%clk 0:02:30.9]} 24... Rfe8 {[%clk
0:02:49.5]} 25. Ree2 {[%clk 0:02:14]} 25... Rxe2 {[%clk 0:02:44.1]} 26. Rxe2
{[%clk 0:02:11.2]} 26... Qa4 {[%clk 0:02:37]} 27. g3 {[%clk 0:02:04.2]} 27...
Bg7 {[%clk 0:02:29.2]} 28. Bxg7 {[%clk 0:01:51.9]} 28... Kxg7 {[%clk 0:02:30.5]}
29. Qc3+ {[%clk 0:01:51.8]} 29... Kg8 {[%clk 0:02:31.3]} 30. Rc2 {[%clk
0:01:50.6]} 30... a5 {[%clk 0:02:31.5]} 31. Kg2 {[%clk 0:01:51.4]} 31... Qb4
{[%clk 0:02:31.4]} 32. f4 {[%clk 0:01:39]} 32... Qxc3 {[%clk 0:02:27.2]} 33.
Rxc3 {[%clk 0:01:39.2]} 33... Kg7 {[%clk 0:02:28.4]} 34. Kf3 {[%clk 0:01:40.1]}
34... Kf6 {[%clk 0:02:29.2]} 35. Ke4 {[%clk 0:01:40.1]} 35... Re8+ {[%clk
0:02:21.8]} 36. Kd4 {[%clk 0:01:40.1]} 36... Re2 {[%clk 0:02:22.6]} 37. Ra3
{[%clk 0:01:38]} 37... Rd2+ {[%clk 0:02:21.3]} 38. Kc3 {[%clk 0:01:35.9]} 38...
Rxh2 {[%clk 0:02:21.7]} 39. Rxa5 {[%clk 0:01:36.9]} 39... Rg2 {[%clk 0:02:21]}
40. Kd4 {[%clk 0:01:37.6]} 40... Rxg3 {[%clk 0:02:21.3]} 41. Ra6 {[%clk
0:01:38.6]} 41... Ke7 {[%clk 0:02:14.2]} 42. Ra7+ {[%clk 0:01:36.4]} 42... Kf6
{[%clk 0:02:14.3]} 43. Rd7 {[%clk 0:01:37]} 43... h5 {[%clk 0:02:11.6]} 44.
Rxd6+ {[%clk 0:01:37.9]} 44... Kf5 {[%clk 0:02:13.3]} 45. Rd7 {[%clk 0:01:32]}
45... f6 {[%clk 0:02:10.5]} 46. c5 {[%clk 0:01:32]} 46... h4 {[%clk 0:02:11.5]}
47. c6 {[%clk 0:01:33.1]} 47... Rg1 {[%clk 0:02:11.1]} 48. c7 {[%clk 0:01:33.1]}
48... Rc1 {[%clk 0:02:11.6]} 49. d6 {[%clk 0:01:33.8]} 49... h3 {[%clk
0:02:12.8]} 50. Rh7 {[%clk 0:01:34.7]} 50... Kg4 {[%clk 0:02:14.1]} 51. d7
{[%clk 0:01:31.6]} 51... h2 {[%clk 0:02:14.3]} 52. d8=Q {[%clk 0:01:32.2]} 52...
Rd1+ {[%clk 0:02:11.3]} 1-0